Cogmind - Beta 17 @@@ ROGUE MODE // 2026.07.24 @ 09:55:44 Player: Akl Result: Destroyed by Y-45 Defender with Beam Rifle Performance ------------- Evolutions (2) 1000 Regions Visited (4) 800 Robots Destroyed (20) 100 Value Destroyed (386) 386 Prototype IDs (1) 20 Alien Tech Used (0) 0 Bonus (0) 0 TOTAL SCORE: 2306 Bonus ------- None Cogmind --------- Core Integrity 0/550 Matter 300/300 Energy 100/100 System Corruption 0% Temperature Cool (9) Movement Core (50) Location -8/Materials Parts ------- > --- POWER (1) -------- (None) > --- PROPULSION (4) --- (None) > --- UTILITY (4) ------ Structural Scanner Signal Interpreter > --- WEAPON (2) ------- Mining Claw > --- INVENTORY (5) ---- Small Storage Unit Trap Scanner Improved Assault Rifle Assault Cannon Datajack Peak State ------------ > --- POWER ------------ Light Ion Engine > --- PROPULSION ------- Flight Unit Flight Unit VTOL Module > --- UTILITY ---------- Structural Scanner Signal Interpreter Improved Terrain Scanner > --- WEAPON ----------- Small Laser Light Assault Rifle > --- INVENTORY -------- Ion Engine Flight Unit Flight Unit Seismic Detector Improved Assault Rifle [Rating: 12] Favorites ----------- Power Ion Engine Engine Ion Engine Propulsion Flight Unit Leg Aluminum Leg Hover Unit Hover Unit Flight Unit Flight Unit Utility Signal Interpreter Device Structural Scanner Processor Signal Interpreter Weapon Light Assault Rifle Energy Gun Medium Laser Ballistic Gun Light Assault Rifle Impact Weapon Flail Slashing Weapon Mining Claw Special Melee Weapon Datajack Build | -11 -10 -9 -9 -8 ------- Run | Yrd Mat Mat Min Mat Slots Evolved 4 | . . 2 . 2 Power . | . . . . . Propulsion 2 | . . 1 . 1 Utility 2 | . . 1 . 1 Weapon . | . . . . . Parts Attached 31 | 4 9 7 2 9 Power 4 | . 2 1 . 1 Engine 4 | . 2 1 . 1 Core . | . . . . . Reactor . | . . . . . Propulsion 11 | 2 4 3 . 2 Treads . | . . . . . Leg 2 | 2 . . . . Wheel . | . . . . . Hover 2 | . 2 . . . Flight 7 | . 2 3 . 2 Utility 7 | . 2 2 . 3 Device 5 | . 1 1 . 3 Storage . | . . . . . Processor 2 | . 1 1 . . Hackware . | . . . . . Protection . | . . . . . Artifact . | . . . . . Weapon 9 | 2 1 1 2 3 Energy Gun 2 | 1 . 1 . . Energy Cannon . | . . . . . Ballistic Gun 3 | 1 1 . . 1 Ballistic Cannon . | . . . . . Launcher . | . . . . . Special Weapon . | . . . . . Impact Weapon 1 | . . . 1 . Slashing Weapon 2 | . . . . 2 Piercing Weapon . | . . . . . Special Melee Weapon 1 | . . . 1 . Unidentified Prototypes 1 | . . . . 1 Parts Lost 16 | . 2 1 8 5 Power 2 | . . . 1 1 Propulsion 8 | . 2 1 3 2 Utility 3 | . . . 2 1 Weapon 3 | . . . 2 1 Highest Loss Streak 8 | . 2 1 8 5 To Critical Strikes . | . . . . . Average Backups 4 | 2 3 4 5 4 Power . | 1 1 1 1 . Propulsion . | . 1 1 2 . Utility 1 | . 1 1 1 1 Weapon . | . . . 1 2 Tool/Special . | . . . . . Unused Backups 4 | . . 1 . 3 Power . | . . . . . Propulsion 1 | . . 1 . . Utility 1 | . . . . 1 Weapon 2 | . . . . 2 Tool/Special . | . . . . . Average Slot Usage (%) 70 | . 89 85 54 49 Engine 8 | . 11 11 4 6 Hover 3 | . 11 . . . Flight 14 | . 7 25 15 9 Device 12 | . 12 15 9 11 Processor 10 | . 12 11 11 9 Energy Gun 5 | . 10 6 4 . Ballistic Gun 10 | . 17 15 5 . Impact Weapon 1 | . . . 1 2 Slashing Weapon 1 | . . . . 7 Peak Build Rating 12 | 4 9 12 12 10 Average Rating 7 | 3 8 8 6 6 On Entrance 5 | . 4 9 12 4 Avg Prop Armor Cover (%) 24 | 24 24 . . . Naked Turns . | . . . . . Heaviest Build 11 | 3 9 8 7 11 Greatest Support 12 | 3 12 12 12 8 Greatest Overweight (x) 2 | . 2 1 . 2 Average Overweight (x) . | . . . . . Largest Inventory Capacity 5 | 5 5 5 5 5 Average Capacity 5 | 5 5 5 5 5 Most Carried 5 | 5 5 5 5 5 Average Carried 4 | 2 3 4 5 4 Final Capacity 5 | 5 5 5 5 5 Final Carried 5 | 5 4 5 5 5 Class Distribution -------------------- 62% | Mutant 22% | Scavenger-Mutant 15% | Scavenger-Sprinter Dominant Class ---------------- Mutant | -10/Materials Scavenger-Mutant | -9/Materials Mutant | -9/Mines Mutant | -8/Materials Resources | -11 -10 -9 -9 -8 ----------- Run | Yrd Mat Mat Min Mat Matter Collected 586 | 242 127 112 20 85 Remotely . | . . . . . Salvage Created 539 | 90 137 145 . 167 Parts 43 | 10 7 9 . 17 Haulers Intercepted . | . . . . . Recyclers Shooed . | . . . . . Parts Field Recycled . | . . . . . Retrieved Matter . | . . . . . Parts Self-Destructed . | . . . . . Prevented . | . . . . . Parts Restored . | . . . . . Kills | -11 -10 -9 -9 -8 ------- Run | Yrd Mat Mat Min Mat Combat Hostiles Destroyed 16 | . 5 6 . 5 Melee 5 | . . . . 5 Guns 11 | . 5 6 . . Classes Destroyed 6 | 2 3 . . 1 Worker 1 | . 1 . . . Tunneler 2 | 2 . . . . Recycler 1 | 1 . . . . Swarmer 9 | . 3 4 . 2 Grunt 6 | . 2 2 . 2 Sentry 1 | . . . . 1 Best Kill Streak 6 | 2 5 6 . 3 Combat Bots Only 6 | . 5 6 . 3 Max Kills in Single Turn 1 | 1 1 1 . 1 Gunslinging . | . . . . . Exploded . | . . . . . Melee 1 | . . . . 1 Uniques/NPCs Destroyed . | . . . . . Combat | -11 -10 -9 -9 -8 -------- Run | Yrd Mat Mat Min Mat Hostile Shots Fired 167 | . 45 24 6 92 Missed 39 | . 14 5 . 20 Hits 128 | . 31 19 6 72 Projectile 128 | . 31 19 6 72 AOE 12 | . . . 12 . Critical Strikes 1 | . . . . 1 Damage Taken 1763 | . 298 170 516 779 Core 984 | . 80 39 314 551 Absorbed by Shields . | . . . . . Core Remaining (%) 59 | 100 68 . 11 . Volleys Fired 59 | 14 23 18 4 . Largest 2 | 2 2 2 2 . Hottest 70 | 70 70 60 60 . Shots Fired 113 | 28 44 36 5 . Gun 113 | 28 44 36 5 . Cannon . | . . . . . Launcher . | . . . . . Special . | . . . . . Kinetic 65 | 14 24 23 4 . Thermal 48 | 14 20 13 1 . Explosive . | . . . . . Electromagnetic . | . . . . . Robot Hit Streak 11 | 4 7 11 1 . Robot Miss Streak 6 | 3 6 3 2 . Penetration Max . | . . . . . Secondary Targets 3 | . 3 . . . Max Gunslinging Chain 1 | . 1 . . . Shots Hit Robots 88 | 18 26 23 2 19 Core Hits 32 | 5 10 8 1 8 Critical Kills . | . . . . . Critical Parts Destroyed . | . . . . . Critical Strikes . | . . . . . Melee Attacks 31 | . . . . 31 Impact . | . . . . . Slashing 29 | . . . . 29 Piercing . | . . . . . Sneak Attacks 3 | . . . . 3 Combat Hostiles . | . . . . . Follow-up Attacks 4 | . . . . 4 Damage Inflicted 1108 | 180 275 223 10 420 Guns 688 | 180 275 223 10 . Cannons . | . . . . . Explosions . | . . . . . Melee 420 | . . . . 420 Ramming . | . . . . . Kinetic 355 | 91 127 127 10 . Thermal 333 | 89 148 96 . . Explosive . | . . . . . Electromagnetic . | . . . . . Impact . | . . . . . Slashing 420 | . . . . 420 Piercing . | . . . . . Highest Corruption . | . . . . . Average Corruption . | . . . . . Corruption Purged . | . . . . . Corruption Blocked . | . . . . . Overload Shots . | . . . . . Overflow Damage 18 | . . . . 18 Projectiles . | . . . . . Explosions . | . . . . . Melee 18 | . . . . 18 Knockbacks . | . . . . . Impact . | . . . . . Kinetic . | . . . . . Secondary . | . . . . . Self-Inflicted Damage . | . . . . . Shots . | . . . . . Rammed . | . . . . . Targets Rammed . | . . . . . Kicked . | . . . . . Crushed . | . . . . . Highest Temperature 356 | 40 356 69 23 . Average Temperature 86 | 18 148 26 10 . Received Heat Transfer 399 | . 102 54 . 243 Effects 3 | . 3 . . . Shutdowns 1 | . 1 . . . Interference 2 | . 2 . . . Siege Activations . | . . . . . Martial Activations . | . . . . . Shielding Activations . | . . . . . Robots Disrupted . | . . . . . Combat Hostiles . | . . . . . Robots Corrupted . | . . . . . Combat Hostiles . | . . . . . Parts Fried . | . . . . . Impact Corruptions . | . . . . . Robots Melted . | . . . . . Combat Hostiles . | . . . . . Parts Melted 1 | 1 . . . . Heat Transferred 928 | 259 444 225 . . Parts Sabotaged . | . . . . . Parts Stolen . | . . . . . Parts Stripped . | . . . . . Power Chain Reactions . | . . . . . Alert | -11 -10 -9 -9 -8 ------- Run | Yrd Mat Mat Min Mat Maximum Alert Level . | . . . . . Low Security (%) 100 | 100 100 100 100 100 Level 1 . | . . . . . Level 2 . | . . . . . Level 3 . | . . . . . Level 4 . | . . . . . Level 5 . | . . . . . High Security . | . . . . . Max Security . | . . . . . Peak Influence 114 | 5 80 114 44 90 Initial 44 | . 3 12 44 3 Average 32 | 1 33 53 19 36 Influence Increases 532 | 15 115 192 30 180 Destroy 0b10 Robot/C 320 | . 100 120 . 100 Destroy 0b10 Robot/NC 20 | 15 5 . . . Destroy Leader 40 | . 10 10 . 20 Successful Hack 17 | . . 17 . . Partial Spotted 45 | . . 45 . . Lose Combat Pursuer 90 | . . . 30 60 Influence Decreases 462 | 10 90 108 134 120 Entered New Map 97 | . 2 18 70 7 Time Decay 261 | 10 68 80 40 63 Lost Part 104 | . 20 10 24 50 Squads Dispatched 3 | . 2 1 . . Investigation 2 | . 1 1 . . Extermination . | . . . . . Reinforcement 1 | . 1 . . . Assault . | . . . . . Garrison . | . . . . . Intercept . | . . . . . Searches Triggered . | . . . . . Construction Impeded . | . . . . . Haulers Reinforced . | . . . . . Active Scanning Responses . | . . . . . Cargo Convoy Interrupts . | . . . . . Stealth | -11 -10 -9 -9 -8 --------- Run | Yrd Mat Mat Min Mat Distress Signals 1 | . . . . 1 Communications Jammed . | . . . . . Distress Signals . | . . . . . Times Spotted 33 | . 11 6 2 14 Peak Tracking Total 11 | . 7 5 2 11 Tactical Retreats 3 | . . . 1 2 Traps | -11 -10 -9 -9 -8 ------- Run | Yrd Mat Mat Min Mat Traps Triggered . | . . . . . Indirectly . | . . . . . Trap Hack Attempts . | . . . . . Triggered . | . . . . . Disarmed . | . . . . . Reprogrammed . | . . . . . Reused . | . . . . . Traps Extracted . | . . . . . Installed . | . . . . . Triggered . | . . . . . Machines | -11 -10 -9 -9 -8 ---------- Run | Yrd Mat Mat Min Mat Machines Disabled . | . . . . . Max in Single Turn . | . . . . . Machines Repaired . | . . . . . Machines Dismantled . | . . . . . Machines Sabotaged . | . . . . . Overloaded Fab Kills . | . . . . . Hacking | -11 -10 -9 -9 -8 --------- Run | Yrd Mat Mat Min Mat Machines Accessed 7 | . 1 6 . . Terminals 6 | . 1 5 . . Fabricators . | . . . . . Repair Stations . | . . . . . Recycling Units 1 | . . 1 . . Scanalyzers . | . . . . . Garrison Access . | . . . . . Total Hacks 20 | . 5 15 . . Successful 12 | . 3 9 . . Failed 8 | . 2 6 . . Catastrophic 1 | . . 1 . . Database Lockouts . | . . . . . Manual 13 | . 2 11 . . Terminals 19 | . 5 14 . . Fabricators . | . . . . . Repair Stations . | . . . . . Recycling Units 1 | . . 1 . . Scanalyzers . | . . . . . Garrison Access . | . . . . . Terminal Hacks 7 | . 2 5 . . Record 1 | . . 1 . . Emergency Access Points 2 | . 1 1 . . Locate Traps 1 | . 1 . . . Zone Layout 3 | . . 3 . . Fabricator Hacks . | . . . . . Repair Station Hacks . | . . . . . Recycling Unit Hacks . | . . . . . Scanalyzer . | . . . . . Garrison Access Hacks . | . . . . . Unauthorized Hacks 5 | . 1 4 . . Terminals 4 | . 1 3 . . Botnet 4 | . 1 3 . . Fabricators . | . . . . . Repair Stations . | . . . . . Recycling Units 1 | . . 1 . . Reject 1 | . . 1 . . Scanalyzers . | . . . . . Garrison Access . | . . . . . Data Cores Recovered . | . . . . . Used . | . . . . . Hacking Detections 6 | . 1 5 . . Full Trace Events 3 | . 1 2 . . Feedback Events . | . . . . . Feedback Blocked . | . . . . . Robot Schematics Acquired . | . . . . . Robots Built . | . . . . . Authchips . | . . . . . Time . | . . . . . Total Robot Build Rating . | . . . . . Part Schematics Acquired . | . . . . . Parts Built . | . . . . . Authchips . | . . . . . Time . | . . . . . Total Part Build Rating . | . . . . . Part Studies Acquired . | . . . . . Parts Repaired . | . . . . . Time . | . . . . . Parts Recycled . | . . . . . Recycled Matter . | . . . . . Retrieved Matter . | . . . . . Retrieved Components . | . . . . . Parts Scanalyzed . | . . . . . Part Schematics Acquired . | . . . . . Parts Damaged . | . . . . . Bothacking | -11 -10 -9 -9 -8 ------------ Run | Yrd Mat Mat Min Mat Used RIF Installer . | . . . . . Robots Hacked 1 | . . . . 1 Non-combat 1 | . . . . 1 Combat . | . . . . . Robot Hacks Applied 1 | . . . . 1 no_distress 1 | . . . . 1 Relay Couplers Released . | . . . . . Fabnet Peak Effective % . | . . . . . Robots Rewired . | . . . . . Allies Hacked . | . . . . . Hacks Repelled . | . . . . . Allies | -11 -10 -9 -9 -8 -------- Run | Yrd Mat Mat Min Mat Total Allies . | . . . . . Largest Group . | . . . . . Highest-Rated Group . | . . . . . Highest-Rated Ally . | . . . . . Total Orders . | . . . . . Ally Attacks . | . . . . . Total Damage . | . . . . . Kills . | . . . . . Allies Corrupted . | . . . . . Allies Melted . | . . . . . Intel | -11 -10 -9 -9 -8 ------- Run | Yrd Mat Mat Min Mat Active Infowar (turns) 589 | . 181 178 56 174 Terrain 300 | . 181 65 54 . Structural 356 | . . 178 56 122 Traps 1 | . . . . 1 Seismic 98 | . . . . 98 Robot Analysis Total . | . . . . . Derelict Logs Recovered 1 | . . . 1 . Drone Launches . | . . . . . Drone Recoveries . | . . . . . Exploration | -11 -10 -9 -9 -8 ------------- Run | Yrd Mat Mat Min Mat Turns Passed 769 | 97 186 178 131 177 Spaces Moved 988 | 90 180 305 248 165 Core 246 | 90 14 . 141 1 Treads . | . . . . . Legs . | . . . . . Wheels . | . . . . . Hover 71 | . 71 . . . Flight 671 | . 95 305 107 164 Fastest Speed 32 | 50 37 32 32 37 Average Speed 42 | 50 53 34 42 39 Slowest Speed 200 | 50 200 120 50 200 Overloaded Moves . | . . . . . Propulsion Burnouts . | . . . . . Robots Hopped 4 | . 1 1 . 2 Potential Cave-ins . | . . . . . Cave-ins Triggered . | . . . . . Exploration Rate (%) 28 | 4 32 30 54 21 Regions Visited 4 Branch Regions 1 Pre-discovered Areas 1 | . . . 1 . Known Exits Taken 3 | . 1 1 1 . Unknown Exits Taken 1 | 1 . . . . Scrap Searched 1 | . . . 1 . Spaces Dug . | . . . . . Terrain Destroyed . | . . . . . Melee . | . . . . . Projectile . | . . . . . AOE . | . . . . . Terrain Rammed . | . . . . . Walls Destroyed . | . . . . . Machines Disabled . | . . . . . Actions | -11 -10 -9 -9 -8 --------- Run | Yrd Mat Mat Min Mat Total 1178 | 116 227 344 268 223 Wait 44 | . 11 7 15 11 Move 976 | 89 177 302 247 161 Hop 4 | . 1 1 . 2 Pick Up 18 | 9 1 3 . 5 Fast Attach 12 | . 5 3 2 2 Attach 15 | 4 2 2 . 7 Detach 5 | . . 1 . 4 Swap 8 | . 3 3 . 2 Drop 10 | . 4 4 . 2 Fire 59 | 14 23 18 4 . Melee 27 | . . . . 27 Ram . | . . . . . Kick . | . . . . . Crush . | . . . . . Escape Stasis . | . . . . . Rewire . | . . . . . Trap . | . . . . . Miscellaneous . | . . . . . Route ------- -11/Scrapyard -10/Materials -9/Materials -9/Mines -8/Materials History --------- Turn | Location | Event 22 | -11/Scrapyard | Discovered new exit (range 15) 98 | -11/Scrapyard | Entered Materials 258 | -10/Materials | Discovered new exit (range 15) 283 | -10/Materials | Identified exit to Materials 284 | -10/Materials | Entered another Materials area 284 | -9/Materials | Evolved 2 slots: Propulsion x1, Utility x1 418 | -9/Materials | Discovered new exit (range 16) 461 | -9/Materials | Identified exit to Mines 462 | -9/Materials | Entered Mines 475 | -9/Mines | Assembled infested the area 480 | -9/Mines | Assisted by a Guerilla fighting off Assembled 526 | -9/Mines | Core integrity fell below 50% 528 | -9/Mines | Core integrity fell below 20% 551 | -9/Mines | Lost 8 parts (1p3n2u2w) 559 | -9/Mines | Discovered new exit (range 8) 562 | -9/Mines | Identified exit to Materials 593 | -9/Mines | Entered Materials 593 | -8/Materials | Evolved 2 slots: Propulsion x1, Utility x1 740 | -8/Materials | Core integrity fell below 50% 762 | -8/Materials | Core integrity fell below 20% 770 | -8/Materials | Destroyed by Y-45 Defender with Beam Rifle Last Messages --------------- 00702_ Mining Claw follow-up attack on S-10 Pest. 00702_ S-10 Pest destroyed. 00705_ Flight Unit destroyed. 00708_ R-06 Scavenger collects Flight Unit. 00715_ R-06 Scavenger collects Flail. 00717_ Sneak attack on R-06 Scavenger. 00717_ Destroyed Com. Wheel. 00721_ Ion Engine destroyed. 00723_ G-47 Trooper destroyed. 00726_ Y-45 Defender destroyed. 00729_ Mining Claw follow-up attack on G-47 Trooper. 00733_ G-47 Trooper destroyed. 00741_ Mining Claw destroyed. 00747_ K-01 Serf collects debris. 00751_ Acquired 75 matter. 00759_ G-47 Trooper destroyed. 00759_ K-01 Serf collects debris. 00761_ Critical hit (Burn: +37). Map ----- +----------------------------------------------------+ | #???????## ##??????????????????????????????????? | | #???????## * ##??????????????????????????????????? | | ########## %|## ?????????????????????????????????? | | ########## = ## # ?????????????????? | | + ###+#############+?????????????????? | | # ?????????????????? | | # ?????????????????? | | ??????????????? | | ####+#### ###+######+##########??????????????? | | ## ####### # ##??????????????? | | ## * """####### # ##??????????????? | | ## """##???## ! # """ """ ##??????????????? | | ## * """##???## # """ """ ##??????????????? | | ## ##???## + """ """ ##??????????????? | | ## ##???## # """ ##??????????????? | | ##########???## # """ ##??????????????? | | ###???## * # ##??????????????? | | ?????????????## ####/#######??????????????? | | ?????????????############## #######??????????????? | | ?????????????############## ##???????????????????? | | ????????????????????## # ##???????????????????? | | ????????????????????##! # ##???????????????????? | | ????????????????????## %[# ##???????????????????? | | ????????????????????##/ =[# ##???????????????????? | | ????????????????????##/=*=#=##???????????????????? | | ????????????????????## ![@Yk##???????????????????? | | ???????????????????? # [=s#m##???????????????????? | | ???????????????????? ######[##???????????????????? | | ???????????????????? ???????????????????? | | ?????????????????????????## # ?????????????????? | | ?????????????????????????## # ?????????????????? | | ?????????????????????????## + ?????????????????? | | ?????????????????????????## ### ?????????????????? | | ?????????????????????????## ### ?????????????????? | | ??????????????????????????? ?????????????????????? | | ??????????????????????????? ?????????????????????? | | ??????????????????????????? ?????????????????????? | | ??????????????????????????? ?????????????????????? | | ?????????????????????????? ????????????????????? | | ??????????????????????????###????????????????????? | | ??????????????????????????## ????????????????????? | | #????????????????????????????????????????????????? | | #????????????????????????????????????????????????? | | #????????????????????????????????????????????????? | | ???????????????????????????????????????????? | | ##???????????????????????????????????????????????? | | ?????????????????????????????????????????????????? | | ?????????????????????????????????????????????????? | | ?????????????????????????????????????????????????? | | ?????????????????????????????????????????????????? | +----------------------------------------------------+ Best States ------------- Heat Dissipation 31 Energy Generation 10 Energy Capacity 250 Matter Stores 300 Matter Capacity 300 Sight Range 16 Terrain Scan Range 16 Terrain Scan Density 10 Evasion (%) 63 Item Schematics ----------------- None Robot Schematics ------------------ None Fabricated ------------ Nothing Repaired ---------- Nothing Studied --------- None Alien Tech Used ----------------- None Achievements -------------- None Challenges ------------ None Game ------ Seed ProcessingTacticalCyclogen Manual? 0 Play Time 00:19:22 Cumulative 37.7 hours Start 2026.07.24 @ 09:30:25 End 2026.07.24 @ 09:55:44 Sessions 1 Manual Loads 0 Difficulty Rogue Special Mode None Game No. 65 Rogue 65 Adventurer 0 Explorer 0 Win Type - Total 0 Types 0/0/0/0/0/0/0/0/0/0 Lore% 24 Gallery% 30 Achievement% 23 Wizard Run 0 Options --------- Layout 1 ASCII 0 Keyboard 0 Movement Mouse Keybinds 0 Fullscreen 1 Font 24/Smallcaps Map View 50x35 Zoom Use 0% Tactical HUD 1 Map Filters NONE Filters NONE Steam 1 RUN: b4d15554-5e8c-42e7-af67-6d9599cac93d